[Event "Titled Tuesday Blitz March 07 Early 2023"]
[White "Sanchez, Robert"]
[Black "Czernek, Tymon"]
[WhiteFideId "2034360"]
[BlackFideId "1199510"]
[WhiteElo "2352"]
[BlackElo "2156"]
[Result "0-1"]
[Round "02"]
[TimeControl "180+2"]
[Date "2023.03.07"]
[WhiteClock "0:01:05"]
[BlackClock "0:01:28"]

1. e4 {[%clk 0:03:00]}  c5 {[%clk 0:02:57]} 2. Nf3 {[%clk 0:03:01]}  d6 {[%clk 0:02:58]} 3. d4 {[%clk 0:03:01]}  cxd4 {[%clk 0:02:59]} 4. Nxd4 {[%clk 0:03:02]}  Nf6 {[%clk 0:02:59]} 5. Nc3 {[%clk 0:03:02]}  a6 {[%clk 0:02:59]} 6. Be3 {[%clk 0:03:03]}  e5 {[%clk 0:03:00]} 7. Nb3 {[%clk 0:03:03]}  Be6 {[%clk 0:02:59]} 8. f3 {[%clk 0:03:03]}  Nbd7 {[%clk 0:02:54]} 9. Qd2 {[%clk 0:03:04]}  Qc7 {[%clk 0:02:52]} 10. g4 {[%clk 0:03:04]}  Be7 {[%clk 0:02:48]} 11. g5 {[%clk 0:03:03]}  Nh5 {[%clk 0:02:48]} 12. Nd5 {[%clk 0:03:01]}  Bxd5 {[%clk 0:02:48]} 13. exd5 {[%clk 0:03:01]}  f5 {[%clk 0:02:39]} 14. gxf6 {[%clk 0:02:57]}  Nhxf6 {[%clk 0:02:38]} 15. O-O-O {[%clk 0:02:56]}  Nb6 {[%clk 0:02:36]} 16. Bxb6 {[%clk 0:02:43]}  Qxb6 {[%clk 0:02:30]} 17. Kb1 {[%clk 0:02:42]}  Rc8 {[%clk 0:02:27]} 18. Bh3 {[%clk 0:02:41]}  Rc4 {[%clk 0:02:25]} 19. Be6 {[%clk 0:02:40]}  Nh5 {[%clk 0:02:19]} 20. Rhg1 {[%clk 0:02:19]}  g6 {[%clk 0:02:15]} 21. Qh6 {[%clk 0:02:13]}  Bf8 {[%clk 0:02:14]} 22. Qg5 {[%clk 0:02:10]}  Qd8 {[%clk 0:02:12]} 23. Bf7+ {[%clk 0:01:58]}  Kd7 {[%clk 0:02:09]} 24. Be6+ {[%clk 0:01:57]}  Kc7 {[%clk 0:02:08]} 25. Qd2 {[%clk 0:01:55]}  Kb8 {[%clk 0:02:06]} 26. c3 {[%clk 0:01:49]}  Nf4 {[%clk 0:02:05]} 27. Qe3 {[%clk 0:01:38]}  Bh6 {[%clk 0:02:00]} 28. Nd2 {[%clk 0:01:30]}  Rc5 {[%clk 0:01:52]} 29. Ne4 {[%clk 0:01:29]}  Rb5 {[%clk 0:01:51]} 30. c4 {[%clk 0:01:22]}  Rb4 {[%clk 0:01:44]} 31. Qc3 {[%clk 0:01:13]}  Rb6 {[%clk 0:01:35]} 32. Rge1 {[%clk 0:01:06]}  Qe7 {[%clk 0:01:28]} 33. c5 {[%clk 0:01:05]}  dxc5 {[%clk 0:01:28]} 34. Qxe5+ {[%clk 0:01:05]} 0-1


[Site "https://www.chess.com"]

[Event "Titled Tuesday Blitz March 07 Early 2023"]
[White "Shapiro, Viktor"]
[Black "Fernandez Siles, Luis"]
[WhiteFideId "4175700"]
[BlackFideId "2209420"]
[WhiteElo "2152"]
[BlackElo "2186"]
[Result "1-0"]
[Round "02"]
[TimeControl "180+2"]
[Date "2023.03.07"]
[WhiteClock "0:01:08"]
[BlackClock "0:00:05"]

1. c4 {[%clk 0:03:00]}  Nf6 {[%clk 0:02:58]} 2. Nc3 {[%clk 0:03:01]}  g6 {[%clk 0:02:59]} 3. g3 {[%clk 0:03:01]}  Bg7 {[%clk 0:02:58]} 4. Bg2 {[%clk 0:03:02]}  O-O {[%clk 0:02:59]} 5. e3 {[%clk 0:03:02]}  d6 {[%clk 0:02:55]} 6. Nge2 {[%clk 0:03:02]}  c5 {[%clk 0:02:46]} 7. d4 {[%clk 0:03:02]}  Nc6 {[%clk 0:02:40]} 8. h3 {[%clk 0:03:02]}  e5 {[%clk 0:02:36]} 9. O-O {[%clk 0:03:00]}  Nd7 {[%clk 0:02:32]} 10. d5 {[%clk 0:02:39]}  Na5 {[%clk 0:02:19]} 11. b3 {[%clk 0:02:39]}  a6 {[%clk 0:02:14]} 12. Bd2 {[%clk 0:02:35]}  Rb8 {[%clk 0:02:03]} 13. a4 {[%clk 0:02:33]}  b6 {[%clk 0:02:02]} 14. Qc2 {[%clk 0:02:30]}  f5 {[%clk 0:02:01]} 15. e4 {[%clk 0:02:28]}  Nf6 {[%clk 0:01:54]} 16. Rae1 {[%clk 0:02:19]}  Nb7 {[%clk 0:01:44]} 17. f4 {[%clk 0:02:17]}  Nh5 {[%clk 0:01:37]} 18. exf5 {[%clk 0:02:03]}  Bxf5 {[%clk 0:01:17]} 19. Ne4 {[%clk 0:02:03]}  Nf6 {[%clk 0:01:14]} 20. g4 {[%clk 0:02:00]}  Bxe4 {[%clk 0:01:10]} 21. Bxe4 {[%clk 0:02:01]}  Nxe4 {[%clk 0:01:10]} 22. Qxe4 {[%clk 0:02:02]}  Qh4 {[%clk 0:01:07]} 23. Kg2 {[%clk 0:02:00]}  Rbe8 {[%clk 0:01:00]} 24. Ng1 {[%clk 0:01:29]}  exf4 {[%clk 0:00:18]} 25. Qxe8 {[%clk 0:01:28]}  Qg3+ {[%clk 0:00:16]} 26. Kh1 {[%clk 0:01:29]}  Rxe8 {[%clk 0:00:16]} 27. Rxe8+ {[%clk 0:01:28]}  Kf7 {[%clk 0:00:17]} 28. Bxf4 {[%clk 0:01:27]}  Qxb3 {[%clk 0:00:14]} 29. Rb8 {[%clk 0:01:26]}  Qxc4 {[%clk 0:00:11]} 30. Rxb7+ {[%clk 0:01:25]}  Kg8 {[%clk 0:00:12]} 31. Rb8+ {[%clk 0:01:14]}  Kf7 {[%clk 0:00:12]} 32. Kg2 {[%clk 0:01:13]}  Qxd5+ {[%clk 0:00:10]} 33. Kg3 {[%clk 0:01:12]}  Be5 {[%clk 0:00:10]} 34. Bxe5+ {[%clk 0:01:12]}  Ke6 {[%clk 0:00:08]} 35. Bf4 {[%clk 0:01:10]}  Qc4 {[%clk 0:00:09]} 36. Re1+ {[%clk 0:01:10]}  Kd5 {[%clk 0:00:09]} 37. Rbe8 {[%clk 0:01:10]}  Qc3+ {[%clk 0:00:07]} 38. Nf3 {[%clk 0:01:09]}  h6 {[%clk 0:00:06]} 39. Rd8 {[%clk 0:01:08]}  Kc4 {[%clk 0:00:05]} 40. Rxd6 {[%clk 0:01:08]}  g5 {[%clk 0:00:05]} 41. Re4+ {[%clk 0:01:08]} 1-0


[Site "https://www.chess.com"]

[Event "Titled Tuesday Blitz March 07 Early 2023"]
[White "Saravana, Krishnan P."]
[Black "Seletsky, Grigory"]
[WhiteFideId "5018382"]
[BlackFideId "14112191"]
[WhiteElo "2189"]
[BlackElo "2490"]
[Result "1-0"]
[Round "02"]
[TimeControl "180+2"]
[Date "2023.03.07"]
[WhiteClock "0:00:09"]
[BlackClock "0:00:07"]

1. e4 {[%clk 0:02:59]}  c6 {[%clk 0:02:53]} 2. d4 {[%clk 0:02:55]}  d5 {[%clk 0:02:51]} 3. exd5 {[%clk 0:02:55]}  cxd5 {[%clk 0:02:51]} 4. c4 {[%clk 0:02:55]}  Nf6 {[%clk 0:02:50]} 5. Nc3 {[%clk 0:02:53]}  Nc6 {[%clk 0:02:50]} 6. Bg5 {[%clk 0:02:42]}  dxc4 {[%clk 0:02:27]} 7. d5 {[%clk 0:02:38]}  Ne5 {[%clk 0:02:26]} 8. Qd4 {[%clk 0:02:24]}  Nd3+ {[%clk 0:02:19]} 9. Bxd3 {[%clk 0:02:21]}  cxd3 {[%clk 0:02:19]} 10. Nf3 {[%clk 0:02:21]}  g6 {[%clk 0:02:10]} 11. Bxf6 {[%clk 0:02:07]}  exf6 {[%clk 0:02:08]} 12. O-O-O {[%clk 0:02:07]}  Bg7 {[%clk 0:02:07]} 13. Rhe1+ {[%clk 0:02:06]}  Kf8 {[%clk 0:02:07]} 14. Rxd3 {[%clk 0:01:47]}  Bf5 {[%clk 0:01:51]} 15. Ne4 {[%clk 0:01:33]}  h5 {[%clk 0:01:46]} 16. Kb1 {[%clk 0:01:32]}  Kg8 {[%clk 0:01:22]} 17. Ka1 {[%clk 0:01:30]}  Bxe4 {[%clk 0:01:14]} 18. Qxe4 {[%clk 0:01:29]}  f5 {[%clk 0:01:11]} 19. Qb4 {[%clk 0:01:28]}  a5 {[%clk 0:01:05]} 20. Qb5 {[%clk 0:01:26]}  Qd6 {[%clk 0:01:02]} 21. Ng5 {[%clk 0:01:19]}  Bf6 {[%clk 0:00:56]} 22. Nxf7 {[%clk 0:00:16]}  Kxf7 {[%clk 0:00:41]} 23. Qxb7+ {[%clk 0:00:16]}  Be7 {[%clk 0:00:41]} 24. Rde3 {[%clk 0:00:14]}  Rae8 {[%clk 0:00:41]} 25. a3 {[%clk 0:00:12]}  Rhf8 {[%clk 0:00:23]} 26. Re6 {[%clk 0:00:12]}  Qc5 {[%clk 0:00:22]} 27. d6 {[%clk 0:00:11]}  Kg7 {[%clk 0:00:14]} 28. dxe7 {[%clk 0:00:11]}  Rf7 {[%clk 0:00:13]} 29. Qd7 {[%clk 0:00:10]}  Rexe7 {[%clk 0:00:08]} 30. Rxe7 {[%clk 0:00:10]}  Rxe7 {[%clk 0:00:07]} 31. Qxe7+ {[%clk 0:00:10]}  Kh6 {[%clk 0:00:07]} 32. Qxc5 {[%clk 0:00:09]} 1-0


[Site "https://www.chess.com"]

[Event "Titled Tuesday Blitz March 07 Early 2023"]
[White "Matveeva, Olga"]
[Black "Hirneise, Jens"]
[WhiteFideId "24107018"]
[BlackFideId "24614734"]
[WhiteElo "2056"]
[BlackElo "2345"]
[Result "1-0"]
[Round "02"]
[TimeControl "180+2"]
[Date "2023.03.07"]
[WhiteClock "0:00:09"]
[BlackClock "0:00:26"]

1. d4 {[%clk 0:03:00]}  d6 {[%clk 0:02:57]} 2. Nf3 {[%clk 0:03:00]}  Nd7 {[%clk 0:02:55]} 3. g3 {[%clk 0:02:57]}  c5 {[%clk 0:02:51]} 4. d5 {[%clk 0:02:53]}  g6 {[%clk 0:02:46]} 5. Bg2 {[%clk 0:02:53]}  Bg7 {[%clk 0:02:46]} 6. O-O {[%clk 0:02:53]}  Ngf6 {[%clk 0:02:45]} 7. c4 {[%clk 0:02:52]}  b5 {[%clk 0:02:45]} 8. cxb5 {[%clk 0:02:51]}  a6 {[%clk 0:02:45]} 9. bxa6 {[%clk 0:02:51]}  Bxa6 {[%clk 0:02:46]} 10. Nc3 {[%clk 0:02:51]}  Qb6 {[%clk 0:02:40]} 11. Rb1 {[%clk 0:02:49]}  h5 {[%clk 0:02:36]} 12. h3 {[%clk 0:02:40]}  Rb8 {[%clk 0:02:23]} 13. b3 {[%clk 0:02:39]}  h4 {[%clk 0:02:20]} 14. g4 {[%clk 0:02:38]}  Nxg4 {[%clk 0:02:20]} 15. Na4 {[%clk 0:02:32]}  Qb5 {[%clk 0:02:16]} 16. hxg4 {[%clk 0:02:31]}  h3 {[%clk 0:02:15]} 17. Bh1 {[%clk 0:02:27]}  Qxe2 {[%clk 0:02:14]} 18. Qxe2 {[%clk 0:02:17]}  Bxe2 {[%clk 0:02:15]} 19. Re1 {[%clk 0:02:13]}  Bxf3 {[%clk 0:02:07]} 20. Bxf3 {[%clk 0:02:12]}  Ne5 {[%clk 0:02:08]} 21. Be2 {[%clk 0:02:04]}  c4 {[%clk 0:01:50]} 22. Bf4 {[%clk 0:01:48]}  Kd7 {[%clk 0:01:42]} 23. bxc4 {[%clk 0:01:44]}  Kc7 {[%clk 0:01:32]} 24. c5 {[%clk 0:01:34]}  Ra8 {[%clk 0:01:29]} 25. cxd6+ {[%clk 0:01:30]}  exd6 {[%clk 0:01:30]} 26. Rec1+ {[%clk 0:01:29]}  Kd8 {[%clk 0:01:29]} 27. Nb6 {[%clk 0:01:02]}  Rb8 {[%clk 0:01:29]} 28. a4 {[%clk 0:00:57]}  Nd7 {[%clk 0:01:21]} 29. a5 {[%clk 0:00:46]}  Nxb6 {[%clk 0:01:08]} 30. Rxb6 {[%clk 0:00:40]}  Ra8 {[%clk 0:01:05]} 31. a6 {[%clk 0:00:35]}  Bd4 {[%clk 0:00:57]} 32. Rxd6+ {[%clk 0:00:32]}  Ke7 {[%clk 0:00:55]} 33. Rc7+ {[%clk 0:00:31]}  Kf8 {[%clk 0:00:55]} 34. Rdd7 {[%clk 0:00:26]}  Rh7 {[%clk 0:00:52]} 35. Kh2 {[%clk 0:00:19]}  g5 {[%clk 0:00:51]} 36. Bd6+ {[%clk 0:00:18]}  Kg8 {[%clk 0:00:51]} 37. a7 {[%clk 0:00:17]}  Rh6 {[%clk 0:00:45]} 38. Rb7 {[%clk 0:00:16]}  Rxa7 {[%clk 0:00:32]} 39. Rxa7 {[%clk 0:00:13]}  Bxa7 {[%clk 0:00:32]} 40. Rxa7 {[%clk 0:00:10]}  Rxd6 {[%clk 0:00:32]} 41. Bf3 {[%clk 0:00:11]}  Kg7 {[%clk 0:00:31]} 42. Kxh3 {[%clk 0:00:10]}  Kf6 {[%clk 0:00:32]} 43. Kg3 {[%clk 0:00:11]}  Rb6 {[%clk 0:00:32]} 44. Rc7 {[%clk 0:00:10]}  Kg7 {[%clk 0:00:30]} 45. Rc6 {[%clk 0:00:10]}  Rb3 {[%clk 0:00:30]} 46. d6 {[%clk 0:00:10]}  Rd3 {[%clk 0:00:30]} 47. Kg2 {[%clk 0:00:10]}  Kf6 {[%clk 0:00:31]} 48. Be4 {[%clk 0:00:10]}  Rd4 {[%clk 0:00:29]} 49. d7+ {[%clk 0:00:09]}  Ke7 {[%clk 0:00:29]} 50. Bf5 {[%clk 0:00:10]}  Rd2 {[%clk 0:00:25]} 51. Rc8 {[%clk 0:00:10]}  Rxd7 {[%clk 0:00:25]} 52. Bxd7 {[%clk 0:00:09]}  Kxd7 {[%clk 0:00:26]} 53. Rc5 {[%clk 0:00:09]}  f6 {[%clk 0:00:26]} 54. Kf3 {[%clk 0:00:09]}  Ke6 {[%clk 0:00:26]} 55. Ke4 {[%clk 0:00:09]} 1-0


[Site "https://www.chess.com"]

[Event "Titled Tuesday Blitz March 07 Early 2023"]
[White "Kuzmin, Roman"]
[Black "Vifleemskaia, Svetlana"]
[WhiteFideId "44134932"]
[BlackFideId "4129490"]
[WhiteElo "2146"]
[BlackElo "1930"]
[Result "1/2-1/2"]
[Round "02"]
[TimeControl "180+2"]
[Date "2023.03.07"]
[WhiteClock "0:00:15"]
[BlackClock "0:00:07"]

1. e4 {[%clk 0:03:00]}  e5 {[%clk 0:02:59]} 2. Nf3 {[%clk 0:03:00]}  Nc6 {[%clk 0:02:58]} 3. Bb5 {[%clk 0:03:00]}  a6 {[%clk 0:02:57]} 4. Ba4 {[%clk 0:03:00]}  Nf6 {[%clk 0:02:56]} 5. O-O {[%clk 0:02:57]}  Be7 {[%clk 0:02:56]} 6. Re1 {[%clk 0:02:55]}  b5 {[%clk 0:02:55]} 7. Bb3 {[%clk 0:02:55]}  d6 {[%clk 0:02:56]} 8. c3 {[%clk 0:02:54]}  O-O {[%clk 0:02:56]} 9. h3 {[%clk 0:02:54]}  Nd7 {[%clk 0:02:53]} 10. d4 {[%clk 0:02:54]}  Bf6 {[%clk 0:02:52]} 11. a4 {[%clk 0:02:47]}  Na5 {[%clk 0:02:50]} 12. axb5 {[%clk 0:02:38]}  axb5 {[%clk 0:02:48]} 13. Ba2 {[%clk 0:02:27]}  Nc4 {[%clk 0:02:46]} 14. Nbd2 {[%clk 0:02:16]}  Nxd2 {[%clk 0:02:40]} 15. Bxd2 {[%clk 0:02:16]}  Nb6 {[%clk 0:02:33]} 16. dxe5 {[%clk 0:02:03]}  dxe5 {[%clk 0:02:32]} 17. Be3 {[%clk 0:02:04]}  Qxd1 {[%clk 0:02:21]} 18. Rexd1 {[%clk 0:02:05]}  Nc4 {[%clk 0:02:21]} 19. Bxc4 {[%clk 0:01:54]}  Rxa1 {[%clk 0:02:18]} 20. Bxf7+ {[%clk 0:01:54]}  Kxf7 {[%clk 0:02:17]} 21. Rxa1 {[%clk 0:01:55]}  Ke6 {[%clk 0:02:09]} 22. Kf1 {[%clk 0:01:42]}  Rd8 {[%clk 0:02:03]} 23. Ke2 {[%clk 0:01:38]}  Bb7 {[%clk 0:02:02]} 24. Nd2 {[%clk 0:01:38]}  Be7 {[%clk 0:01:58]} 25. Ra7 {[%clk 0:01:35]}  Rb8 {[%clk 0:01:47]} 26. f3 {[%clk 0:01:28]}  Bd6 {[%clk 0:01:44]} 27. Nb3 {[%clk 0:01:24]}  Bc6 {[%clk 0:01:42]} 28. Bc5 {[%clk 0:01:22]}  Ra8 {[%clk 0:01:37]} 29. Rxa8 {[%clk 0:01:20]}  Bxa8 {[%clk 0:01:35]} 30. Kd3 {[%clk 0:01:15]}  g5 {[%clk 0:01:28]} 31. c4 {[%clk 0:01:08]}  Bc6 {[%clk 0:01:21]} 32. Bxd6 {[%clk 0:01:02]}  cxd6 {[%clk 0:01:17]} 33. Nc1 {[%clk 0:00:46]}  h5 {[%clk 0:00:56]} 34. g4 {[%clk 0:00:22]}  hxg4 {[%clk 0:00:51]} 35. hxg4 {[%clk 0:00:22]}  bxc4+ {[%clk 0:00:50]} 36. Kxc4 {[%clk 0:00:23]}  d5+ {[%clk 0:00:50]} 37. Kd3 {[%clk 0:00:17]}  dxe4+ {[%clk 0:00:40]} 38. fxe4 {[%clk 0:00:18]}  Bb5+ {[%clk 0:00:40]} 39. Ke3 {[%clk 0:00:18]}  Kd6 {[%clk 0:00:38]} 40. Nb3 {[%clk 0:00:17]}  Bc4 {[%clk 0:00:31]} 41. Nd2 {[%clk 0:00:18]}  Bb5 {[%clk 0:00:30]} 42. Nf3 {[%clk 0:00:17]}  Bd7 {[%clk 0:00:30]} 43. Nh2 {[%clk 0:00:14]}  Kc5 {[%clk 0:00:26]} 44. Nf3 {[%clk 0:00:07]}  Bxg4 {[%clk 0:00:21]} 45. Nxg5 {[%clk 0:00:08]}  Bh5 {[%clk 0:00:15]} 46. Nf3 {[%clk 0:00:07]}  Kd6 {[%clk 0:00:12]} 47. Nd2 {[%clk 0:00:06]}  Bf7 {[%clk 0:00:11]} 48. b4 {[%clk 0:00:06]}  Kc6 {[%clk 0:00:11]} 49. Nf3 {[%clk 0:00:06]}  Kd6 {[%clk 0:00:06]} 50. Kf2 {[%clk 0:00:04]}  Bc4 {[%clk 0:00:03]} 51. Nd2 {[%clk 0:00:04]}  Bd3 {[%clk 0:00:02]} 52. Kf3 {[%clk 0:00:04]}  Bc2 {[%clk 0:00:02]} 53. Kg4 {[%clk 0:00:04]}  Kc6 {[%clk 0:00:02]} 54. Kf5 {[%clk 0:00:05]}  Kb5 {[%clk 0:00:02]} 55. Kxe5 {[%clk 0:00:02]}  Kxb4 {[%clk 0:00:02]} 56. Kd4 {[%clk 0:00:03]}  Kb5 {[%clk 0:00:01]} 57. e5 {[%clk 0:00:03]}  Bf5 {[%clk 0:00:01]} 58. Nf3 {[%clk 0:00:04]}  Kc6 {[%clk 0:00:01]} 59. Nh4 {[%clk 0:00:04]}  Be6 {[%clk 0:00:01]} 60. Ke3 {[%clk 0:00:05]}  Kd7 {[%clk 0:00:01]} 61. Kf4 {[%clk 0:00:05]}  Ke7 {[%clk 0:00:01]} 62. Kg5 {[%clk 0:00:06]}  Kf7 {[%clk 0:00:01]} 63. Nf3 {[%clk 0:00:06]}  Ke7 {[%clk 0:00:01]} 64. Kg6 {[%clk 0:00:05]}  Bd7 {[%clk 0:00:01]} 65. Ng5 {[%clk 0:00:06]}  Be6 {[%clk 0:00:01]} 66. Kg7 {[%clk 0:00:06]}  Bd7 {[%clk 0:00:01]} 67. Kg6 {[%clk 0:00:05]}  Be6 {[%clk 0:00:02]} 68. Kh5 {[%clk 0:00:06]}  Bd7 {[%clk 0:00:02]} 69. Kh4 {[%clk 0:00:07]}  Be6 {[%clk 0:00:03]} 70. Kg3 {[%clk 0:00:08]}  Bd7 {[%clk 0:00:03]} 71. Kf4 {[%clk 0:00:09]}  Be6 {[%clk 0:00:04]} 72. Ne4 {[%clk 0:00:09]}  Bd7 {[%clk 0:00:04]} 73. Nd2 {[%clk 0:00:09]}  Be6 {[%clk 0:00:05]} 74. Nf1 {[%clk 0:00:09]}  Bd7 {[%clk 0:00:05]} 75. Ne3 {[%clk 0:00:10]}  Be6 {[%clk 0:00:06]} 76. Nf5+ {[%clk 0:00:09]}  Bxf5 {[%clk 0:00:06]} 77. Kxf5 {[%clk 0:00:09]}  Kf7 {[%clk 0:00:06]} 78. e6+ {[%clk 0:00:10]}  Ke7 {[%clk 0:00:07]} 79. Ke5 {[%clk 0:00:11]}  Ke8 {[%clk 0:00:07]} 80. Kd5 {[%clk 0:00:12]}  Ke7 {[%clk 0:00:06]} 81. Ke5 {[%clk 0:00:12]}  Ke8 {[%clk 0:00:07]} 82. Kf6 {[%clk 0:00:13]}  Kf8 {[%clk 0:00:07]} 83. e7+ {[%clk 0:00:14]}  Ke8 {[%clk 0:00:07]} 84. Ke6 {[%clk 0:00:15]} 1/2-1/2


[Site "https://www.chess.com"]

[Event "Titled Tuesday Blitz March 07 Early 2023"]
[White "Harriott, Tyrell"]
[Black "Kalajzic, Ivan"]
[WhiteFideId "2086484"]
[BlackFideId "14506378"]
[WhiteElo "2107"]
[BlackElo "2203"]
[Result "1-0"]
[Round "02"]
[TimeControl "180+2"]
[Date "2023.03.07"]
[WhiteClock "0:00:11"]
[BlackClock "0:00:05"]

1. d4 {[%clk 0:03:00]}  Nc6 {[%clk 0:02:59]} 2. e3 {[%clk 0:03:00]}  e5 {[%clk 0:02:59]} 3. f4 {[%clk 0:02:59]}  exf4 {[%clk 0:02:58]} 4. exf4 {[%clk 0:02:58]}  Nf6 {[%clk 0:02:58]} 5. Nf3 {[%clk 0:02:57]}  d5 {[%clk 0:02:50]} 6. Bd3 {[%clk 0:02:56]}  Bg4 {[%clk 0:02:50]} 7. c3 {[%clk 0:02:55]}  Bd6 {[%clk 0:02:48]} 8. O-O {[%clk 0:02:55]}  O-O {[%clk 0:02:48]} 9. Qe1 {[%clk 0:02:55]}  Bxf3 {[%clk 0:02:48]} 10. Rxf3 {[%clk 0:02:56]}  Re8 {[%clk 0:02:47]} 11. Qh4 {[%clk 0:02:39]}  Ne4 {[%clk 0:02:46]} 12. Qh5 {[%clk 0:02:33]}  Nf6 {[%clk 0:02:29]} 13. Qh4 {[%clk 0:02:30]}  Ne7 {[%clk 0:02:23]} 14. Bxh7+ {[%clk 0:02:15]}  Nxh7 {[%clk 0:02:17]} 15. Rh3 {[%clk 0:02:15]}  Ng6 {[%clk 0:02:12]} 16. Qxh7+ {[%clk 0:02:15]}  Kf8 {[%clk 0:02:09]} 17. f5 {[%clk 0:01:57]}  Qf6 {[%clk 0:01:47]} 18. Rf3 {[%clk 0:01:46]}  Re1+ {[%clk 0:01:31]} 19. Kf2 {[%clk 0:01:39]}  Rxc1 {[%clk 0:01:11]} 20. fxg6 {[%clk 0:01:39]}  Bf4 {[%clk 0:00:59]} 21. g3 {[%clk 0:01:14]}  Qe6 {[%clk 0:00:46]} 22. Rxf4 {[%clk 0:00:45]}  Qe1+ {[%clk 0:00:44]} 23. Kf3 {[%clk 0:00:42]}  Qd1+ {[%clk 0:00:29]} 24. Kg2 {[%clk 0:00:42]}  Qh1+ {[%clk 0:00:20]} 25. Kh3 {[%clk 0:00:40]}  f6 {[%clk 0:00:19]} 26. Qh8+ {[%clk 0:00:39]}  Ke7 {[%clk 0:00:19]} 27. Qxg7+ {[%clk 0:00:39]}  Ke8 {[%clk 0:00:16]} 28. Qg8+ {[%clk 0:00:32]}  Kd7 {[%clk 0:00:16]} 29. Qf7+ {[%clk 0:00:19]}  Kc6 {[%clk 0:00:08]} 30. Rxf6+ {[%clk 0:00:14]}  Kb5 {[%clk 0:00:08]} 31. Na3+ {[%clk 0:00:11]}  Ka4 {[%clk 0:00:08]} 32. Rxc1 {[%clk 0:00:11]}  Qxc1 {[%clk 0:00:07]} 33. Rf1 {[%clk 0:00:11]}  Rh8+ {[%clk 0:00:07]} 34. Kg2 {[%clk 0:00:11]}  Qd2+ {[%clk 0:00:07]} 35. Rf2 {[%clk 0:00:11]}  Qd1 {[%clk 0:00:07]} 36. Qf3 {[%clk 0:00:11]}  Qc1 {[%clk 0:00:05]} 37. Nc2 {[%clk 0:00:09]}  Re8 {[%clk 0:00:05]} 38. Ne3 {[%clk 0:00:10]}  Rxe3 {[%clk 0:00:04]} 39. Qf4 {[%clk 0:00:10]}  Rxg3+ {[%clk 0:00:04]} 40. hxg3 {[%clk 0:00:10]}  Qd1 {[%clk 0:00:03]} 41. Qf3 {[%clk 0:00:10]}  Qb1 {[%clk 0:00:03]} 42. Qg4 {[%clk 0:00:11]}  Qd3 {[%clk 0:00:02]} 43. g7 {[%clk 0:00:10]}  b5 {[%clk 0:00:02]} 44. g8=Q {[%clk 0:00:10]}  c6 {[%clk 0:00:02]} 45. Q8g6 {[%clk 0:00:10]}  a5 {[%clk 0:00:03]} 46. Qxd3 {[%clk 0:00:10]}  b4 {[%clk 0:00:03]} 47. b3+ {[%clk 0:00:10]}  Ka3 {[%clk 0:00:04]} 48. Qd2 {[%clk 0:00:10]}  c5 {[%clk 0:00:05]} 49. Qc1# {[%clk 0:00:11]} 1-0


[Site "https://www.chess.com"]

[Event "Titled Tuesday Blitz March 07 Early 2023"]
[White "Ljukin, Sergei"]
[Black "McLaren, Brian"]
[WhiteFideId "14102200"]
[BlackFideId "2604612"]
[WhiteElo "2312"]
[BlackElo "2132"]
[Result "0-1"]
[Round "02"]
[TimeControl "180+2"]
[Date "2023.03.07"]
[WhiteClock "0:02:04"]
[BlackClock "0:02:14"]

1. e4 {[%clk 0:03:00]}  Nf6 {[%clk 0:02:59]} 2. e5 {[%clk 0:03:00]}  Nd5 {[%clk 0:02:59]} 3. c4 {[%clk 0:03:01]}  Nb6 {[%clk 0:02:58]} 4. d4 {[%clk 0:03:01]}  d6 {[%clk 0:02:58]} 5. f4 {[%clk 0:03:01]}  g6 {[%clk 0:02:57]} 6. Nf3 {[%clk 0:03:01]}  Bg7 {[%clk 0:02:57]} 7. Be2 {[%clk 0:03:02]}  O-O {[%clk 0:02:56]} 8. O-O {[%clk 0:03:02]}  Be6 {[%clk 0:02:55]} 9. d5 {[%clk 0:02:59]}  Bg4 {[%clk 0:02:54]} 10. exd6 {[%clk 0:02:58]}  exd6 {[%clk 0:02:54]} 11. Nc3 {[%clk 0:02:58]}  Re8 {[%clk 0:02:54]} 12. h3 {[%clk 0:02:48]}  Bxf3 {[%clk 0:02:52]} 13. Rxf3 {[%clk 0:02:48]}  N8d7 {[%clk 0:02:52]} 14. b3 {[%clk 0:02:42]}  Nc5 {[%clk 0:02:48]} 15. Bb2 {[%clk 0:02:39]}  Ne4 {[%clk 0:02:47]} 16. Qc2 {[%clk 0:02:35]}  Nxc3 {[%clk 0:02:44]} 17. Bxc3 {[%clk 0:02:34]}  Bxc3 {[%clk 0:02:44]} 18. Rxc3 {[%clk 0:02:34]}  Qf6 {[%clk 0:02:43]} 19. Rf1 {[%clk 0:02:31]}  Rxe2 {[%clk 0:02:41]} 20. Qxe2 {[%clk 0:02:28]}  Qxc3 {[%clk 0:02:41]} 21. f5 {[%clk 0:02:28]}  Qe5 {[%clk 0:02:34]} 22. Qg4 {[%clk 0:02:27]}  Re8 {[%clk 0:02:30]} 23. f6 {[%clk 0:02:25]}  Qe3+ {[%clk 0:02:27]} 24. Kh1 {[%clk 0:02:25]}  h5 {[%clk 0:02:26]} 25. Qd1 {[%clk 0:02:21]}  Nd7 {[%clk 0:02:25]} 26. Qc2 {[%clk 0:02:15]}  Qe5 {[%clk 0:02:23]} 27. Qf2 {[%clk 0:02:13]}  b6 {[%clk 0:02:22]} 28. a4 {[%clk 0:02:12]}  Qe2 {[%clk 0:02:21]} 29. Qf4 {[%clk 0:02:10]}  Qe3 {[%clk 0:02:20]} 30. Qh4 {[%clk 0:02:08]}  Qxb3 {[%clk 0:02:17]} 31. Rf3 {[%clk 0:02:04]}  Qb1+ {[%clk 0:02:15]} 32. Kh2 {[%clk 0:02:04]}  Qc1 {[%clk 0:02:14]} 0-1


[Site "https://www.chess.com"]

[Event "Titled Tuesday Blitz March 07 Early 2023"]
[White "Lopez Del Alamo, Antonio"]
[Black "Santos Flores, Alberto"]
[WhiteFideId "2227339"]
[BlackFideId "3601234"]
[WhiteElo "2175"]
[BlackElo "2235"]
[Result "0-1"]
[Round "02"]
[TimeControl "180+2"]
[Date "2023.03.07"]
[WhiteClock "0:00:15"]
[BlackClock "0:00:38"]

1. e4 {[%clk 0:03:00]}  c5 {[%clk 0:01:55]} 2. Nf3 {[%clk 0:02:42]}  Nc6 {[%clk 0:01:55]} 3. Bb5 {[%clk 0:02:41]}  g6 {[%clk 0:01:55]} 4. Bxc6 {[%clk 0:02:39]}  dxc6 {[%clk 0:01:55]} 5. d3 {[%clk 0:02:36]}  Bg4 {[%clk 0:01:56]} 6. h3 {[%clk 0:02:35]}  Bxf3 {[%clk 0:01:55]} 7. Qxf3 {[%clk 0:02:36]}  Bg7 {[%clk 0:01:56]} 8. Nc3 {[%clk 0:02:34]}  e5 {[%clk 0:01:56]} 9. Be3 {[%clk 0:02:32]}  b6 {[%clk 0:01:56]} 10. O-O {[%clk 0:02:20]}  Nf6 {[%clk 0:01:56]} 11. Qe2 {[%clk 0:02:18]}  Nd7 {[%clk 0:01:54]} 12. f4 {[%clk 0:02:13]}  exf4 {[%clk 0:01:55]} 13. Bxf4 {[%clk 0:02:12]}  Nf8 {[%clk 0:01:54]} 14. e5 {[%clk 0:01:54]}  Ne6 {[%clk 0:01:52]} 15. Ne4 {[%clk 0:01:50]}  O-O {[%clk 0:01:49]} 16. c3 {[%clk 0:01:44]}  Nxf4 {[%clk 0:01:46]} 17. Rxf4 {[%clk 0:01:44]}  Bxe5 {[%clk 0:01:45]} 18. Rf3 {[%clk 0:01:39]}  Bg7 {[%clk 0:01:43]} 19. Raf1 {[%clk 0:01:36]}  f5 {[%clk 0:01:42]} 20. Nd2 {[%clk 0:01:25]}  Re8 {[%clk 0:01:42]} 21. Qf2 {[%clk 0:01:24]}  Qd7 {[%clk 0:01:37]} 22. Kh1 {[%clk 0:01:19]}  Re7 {[%clk 0:01:35]} 23. Re1 {[%clk 0:01:10]}  Rae8 {[%clk 0:01:34]} 24. Rfe3 {[%clk 0:01:05]}  Rxe3 {[%clk 0:01:24]} 25. Rxe3 {[%clk 0:01:06]}  Rxe3 {[%clk 0:01:09]} 26. Qxe3 {[%clk 0:01:07]}  Kf7 {[%clk 0:01:09]} 27. Nc4 {[%clk 0:01:03]}  Qe6 {[%clk 0:01:09]} 28. Qf2 {[%clk 0:00:48]}  Bf6 {[%clk 0:01:03]} 29. a4 {[%clk 0:00:43]}  Kg7 {[%clk 0:01:02]} 30. a5 {[%clk 0:00:39]}  b5 {[%clk 0:01:02]} 31. Nd2 {[%clk 0:00:35]}  a6 {[%clk 0:00:49]} 32. Nf3 {[%clk 0:00:34]}  Qd5 {[%clk 0:00:43]} 33. Qe2 {[%clk 0:00:25]}  c4 {[%clk 0:00:40]} 34. dxc4 {[%clk 0:00:20]}  bxc4 {[%clk 0:00:40]} 35. Nd2 {[%clk 0:00:20]}  Qd3 {[%clk 0:00:37]} 36. Qxd3 {[%clk 0:00:18]}  cxd3 {[%clk 0:00:37]} 37. g3 {[%clk 0:00:18]}  Bg5 {[%clk 0:00:37]} 38. Nf3 {[%clk 0:00:15]}  d2 {[%clk 0:00:37]} 39. Nxd2 {[%clk 0:00:15]}  Bxd2 {[%clk 0:00:38]} 0-1


[Site "https://www.chess.com"]